fUST/lending_fUST_20250227
["ID","MTS","AMOUNT","RATE_DAILY","PERIOD"]
[354713546,1740639043617,-862.62,0.00047123,120]
[354713547,1740639043626,-500.0,0.00047123,120]
[354713548,1740639043636,-500.0,0.00047123,120]
[354713549,1740639043645,-500.0,0.00047123,120]
[354713550,1740639043654,-500.0,0.00047123,120]
[354713551,1740639043665,-500.0,0.00047123,120]
[354713552,1740639043675,-500.0,0.00047123,120]
[354713553,1740639043684,-500.0,0.00047123,120]
[354713554,1740639043694,-226.03697544,0.00047123,120]
[354713555,1740639043703,-500.0,0.00047123,120]
[354713556,1740639043712,-500.0,0.00047123,120]
[354713557,1740639043721,-500.0,0.00047123,120]
[354713558,1740639043730,-500.0,0.00047123,120]
[354713559,1740639043740,-500.0,0.00047123,120]
[354713560,1740639043749,-946.85,0.00047123,120]
[354713561,1740639043759,-500.0,0.00047123,120]
[354713562,1740639043769,-500.0,0.00047123,120]
[354713563,1740639043778,-500.0,0.00047123,120]
[354713564,1740639043787,-2794.68,0.00047123,120]
[354713565,1740639043797,-10146.57,0.00047123,120]
[354713566,1740639043806,-500.0,0.00047123,120]
[354713567,1740639043816,-1299.66,0.00047123,120]
[354713568,1740639043825,-500.0,0.00047123,120]
[354713569,1740639043834,-500.0,0.00047123,120]
[354713570,1740639043843,-718.33,0.00047123,120]
[354713571,1740639043853,-500.0,0.00047123,120]
[354713572,1740639043862,-500.0,0.00047123,120]
[354713573,1740639043871,-795.88,0.00047123,120]
[354713574,1740639043880,-1556.83,0.00047123,120]
[354713575,1740639043891,-4439.09,0.00047123,120]
[354713576,1740639043900,-47042.11,0.00047123,7]
[354713577,1740639043909,-500.0,0.00047123,120]
[354713578,1740639043918,-500.0,0.00047123,30]
[354713579,1740639043928,-959.85,0.00047123,120]
[354713580,1740639043938,-1494.81,0.00047123,120]
[354713581,1740639043947,-500.0,0.00047123,120]
[354713582,1740639043958,-500.0,0.00047123,120]
[354713583,1740639043967,-820.98,0.00047123,120]
[354713584,1740639043976,-500.0,0.00047123,120]
[354713585,1740639043986,-500.0,0.00047123,120]
[354713586,1740639043995,-500.0,0.00047123,120]
[354713587,1740639044005,-500.0,0.00047123,120]
[354713588,1740639044015,-500.0,0.00047123,120]
[354713589,1740639044025,-533.64,0.00047123,120]
[354713590,1740639044034,-500.0,0.00047123,120]
[354713591,1740639044044,-2155.72,0.00047123,120]
[354713592,1740639044054,-500.0,0.00047123,120]
[354713593,1740639044063,-175.21852426,0.00047123,120]
[354713594,1740639044073,-500.0,0.00047123,120]
[354713595,1740639044082,-1268.17,0.00047123,120]
[354713596,1740639044091,-500.0,0.00047123,120]
[354713597,1740639044100,-500.0,0.00047123,120]
[354713598,1740639044110,-871.43,0.00047123,120]
[354713599,1740639044120,-500.0,0.00047123,120]
[354713600,1740639044129,-500.0,0.00047123,120]
[354713601,1740639044138,-704.15,0.00047123,3]
[354713602,1740639044147,-500.0,0.00047123,120]
[354713603,1740639044157,-631.49,0.00047123,120]
[354713604,1740639044166,-500.0,0.00047123,120]
[354713605,1740639044175,-500.0,0.00047123,120]
[354713606,1740639044184,-1083.09,0.00047123,120]
[354713607,1740639044193,-1968.43,0.00047123,120]
[354713608,1740639044203,-500.0,0.00047123,120]
[354713609,1740639044212,-500.0,0.00047123,120]
[354713610,1740639044221,-500.0,0.00047123,120]
[354713611,1740639044230,-500.0,0.00047123,120]
[354713612,1740639044239,-500.0,0.00047123,120]
[354713613,1740639044249,-500.0,0.00047123,120]
[354713614,1740639044258,-652.65,0.00047123,120]
[354713615,1740639044268,-500.0,0.00047123,120]
[354713616,1740639044277,-568.42,0.00047123,120]
[354713617,1740639044286,-500.0,0.00047123,120]
[354713618,1740639044295,-1279.68,0.00047123,120]
[354713620,1740639044304,-500.0,0.00047123,120]
[354713622,1740639044314,-1034.76,0.00047123,120]
[354713623,1740639044323,-621.27,0.00047123,120]
[354713624,1740639044332,-500.0,0.00047123,120]
[354713625,1740639044342,-500.0,0.00047123,120]
[354713628,1740639044353,-500.0,0.00047123,120]
[354713630,1740639044363,-971.87,0.00047123,120]
[354713632,1740639044372,-474.2328431,0.00047123,120]
[354713634,1740639044382,-1155.05,0.00047123,120]
[354713637,1740639044391,-8308.25,0.00047123,6]
[354713640,1740639044401,-500.0,0.00047123,120]
[354713642,1740639044410,-828.14,0.00047123,120]
[354713644,1740639044420,-1109.98,0.00047123,120]
[354713646,1740639044429,-500.0,0.00047123,120]
[354713648,1740639044439,-1293.24,0.00047123,120]
[354713649,1740639044448,-3052.81,0.00047123,120]
[354713651,1740639044458,-12487.7,0.00047123,120]
[354713652,1740639044468,-639.4,0.00047123,120]
[354713653,1740639044477,-500.0,0.00047123,120]
[354713655,1740639044487,-1244.93,0.00047123,120]
[354713657,1740639044496,-607.14,0.00047123,120]
[354713658,1740639044505,-500.0,0.00047123,120]
[354713659,1740639044516,-3535.67,0.00047123,120]
[354713660,1740639044534,-500.0,0.00047123,120]
[354713661,1740639044546,-500.0,0.00047123,120]
[354713662,1740639044556,-500.0,0.00047123,120]
[354713664,1740639044566,-5070.35,0.00047123,120]
[354713665,1740639044576,-2147.59,0.00047123,120]
[354713666,1740639044586,-984.76,0.00047123,120]
[354713667,1740639044597,-500.0,0.00047123,120]
[354713668,1740639044607,-784.25,0.00047123,120]
[354713669,1740639044617,-200.0,0.00047173,10]
[354713670,1740639044627,-500.0,0.00047173,10]
[354713671,1740639044637,-501.37557294,0.00047173,10]
[354713672,1740639044647,-500.0,0.00047173,10]
[354713673,1740639044657,-500.0,0.00047173,10]
[354713674,1740639044666,-500.0,0.00047173,10]
[354713675,1740639044676,-501.73391273,0.00047173,10]
[354713676,1740639044686,-501.34704873,0.00047173,10]
[354713677,1740639044696,-500.0,0.00047173,10]
[354713678,1740639044706,-500.0,0.00047173,10]
[354713679,1740639044716,-500.0,0.00047173,10]
[354713680,1740639044725,-500.0,0.00047173,10]
[354713681,1740639044735,-500.0,0.00047173,10]
[354713682,1740639044745,-501.73180647,0.00047173,10]
[354713683,1740639044755,-500.0,0.00047173,10]
[354713684,1740639044765,-385.55002971,0.00047173,10]
[354713685,1740639044775,-500.0,0.00047397,120]
[354713686,1740639044784,-500.0,0.00047397,120]
[354713687,1740639044794,-500.0,0.00047397,120]
[354713688,1740639044805,-500.0,0.00047397,120]
[354713689,1740639044815,-500.0,0.00047397,120]
[354713690,1740639044824,-500.0,0.00047397,120]
[354713691,1740639044834,-500.0,0.00047397,120]
[354713692,1740639044845,-500.0,0.00047397,120]
[354713693,1740639044855,-500.0,0.00047397,120]
[354713694,1740639044864,-500.0,0.00047397,120]
[354713695,1740639044874,-500.0,0.00047397,120]
[354713696,1740639044884,-500.0,0.00047397,120]
[354713697,1740639044893,-500.0,0.00047397,120]
[354713698,1740639044903,-500.0,0.00047397,120]
[354713699,1740639044913,-500.0,0.00047397,120]
[354713700,1740639044923,-500.0,0.00047397,120]
[354713701,1740639044933,-500.0,0.00047397,120]
[354713702,1740639044943,-500.0,0.00047397,120]
[354713703,1740639044954,-500.0,0.00047397,120]
[354713704,1740639044964,-500.0,0.00047397,120]
[354713705,1740639044974,-500.0,0.00047397,120]
[354713706,1740639044984,-764.32,0.00047397,120]
[354713707,1740639044994,-500.0,0.00047397,120]
[354713708,1740639045004,-500.0,0.00047397,120]
[354713709,1740639045014,-500.0,0.00047397,120]
[354713710,1740639045024,-573.21,0.00047397,120]
[354713711,1740639045034,-500.0,0.00047397,120]
[354713712,1740639045044,-500.0,0.00047397,120]
[354713713,1740639045055,-500.0,0.00047397,120]
[354713714,1740639045065,-500.0,0.00047397,120]
[354713715,1740639045075,-507.71,0.00047397,120]
[354713716,1740639045085,-778.91,0.00047397,120]
[354713717,1740639045095,-531.02,0.00047397,120]
[354713718,1740639045105,-500.0,0.00047397,120]
[354713719,1740639045115,-548.62,0.00047397,120]
[354713720,1740639045125,-500.0,0.00047397,120]
[354713721,1740639045135,-682.32,0.00047397,120]
[354713722,1740639045144,-560.36,0.00047397,120]
[354713723,1740639045154,-500.0,0.00047397,120]
[354713724,1740639045163,-794.26,0.00047397,120]
[354713725,1740639045172,-663.38,0.00047397,120]
[354713726,1740639045184,-580.34,0.00047397,120]
[354713727,1740639045194,-500.0,0.00047397,120]
[354713728,1740639045204,-500.0,0.00047397,120]
[354713729,1740639045213,-924.34,0.00047397,120]
[354713730,1740639045223,-500.0,0.00047397,120]
[354713731,1740639045232,-500.0,0.00047397,120]
[354713732,1740639045242,-500.0,0.00047397,120]
[354713733,1740639045251,-500.0,0.00047397,120]
[354713734,1740639045261,-500.0,0.00047397,120]
[354713735,1740639045270,-752.26,0.00047397,120]
[354713736,1740639045280,-500.0,0.00047397,120]
[354713737,1740639045289,-500.0,0.00047397,120]
[354713738,1740639045299,-552.99,0.00047397,120]
[354713739,1740639045308,-500.0,0.00047397,120]
[354713740,1740639045318,-862.62,0.00047397,120]
[354713741,1740639045327,-500.0,0.00047397,120]
[354713742,1740639045336,-500.0,0.00047397,120]
[354713743,1740639045346,-500.0,0.00047397,120]
[354713744,1740639045358,-500.0,0.00047397,120]
[354713745,1740639045368,-500.0,0.00047397,120]
[354713746,1740639045377,-500.0,0.00047397,120]
[354713747,1740639045387,-500.0,0.00047397,120]
[354713748,1740639045397,-500.0,0.00047397,120]
[354713749,1740639045407,-500.0,0.00047397,120]
[354713750,1740639045416,-500.0,0.00047397,120]
[354713751,1740639045597,-500.0,0.00047397,120]
[354713752,1740639045610,-500.0,0.00047397,120]
[354713753,1740639045621,-946.85,0.00047397,120]
[354713754,1740639045631,-500.0,0.00047397,120]
[354713755,1740639045640,-500.0,0.00047397,120]
[354713756,1740639045650,-500.0,0.00047397,120]
[354713757,1740639045660,-2794.68,0.00047397,120]
[354713758,1740639045670,-10146.57,0.00047397,120]
[354713759,1740639045681,-500.0,0.00047397,120]
[354713760,1740639045691,-1299.66,0.00047397,120]
[354713761,1740639045702,-500.0,0.00047397,120]
[354713762,1740639045711,-500.0,0.00047397,120]
[354713763,1740639045721,-718.33,0.00047397,120]
[354713764,1740639045732,-500.0,0.00047397,120]
[354713765,1740639045742,-795.88,0.00047397,120]
[354713766,1740639045753,-500.0,0.00047397,120]
[354713767,1740639045762,-1556.83,0.00047397,120]
[354713768,1740639045771,-4439.09,0.00047397,120]
[354713769,1740639045781,-47042.11,0.00047397,7]
[354713770,1740639045790,-273.37572,0.00047397,120]
[354713771,1740639045799,-500.0,0.00047397,30]
[354713772,1740639045809,-959.85,0.00047397,120]
[354713773,1740639045818,-1494.81,0.00047397,120]
[354713774,1740639045827,-500.0,0.00047397,120]
[354713775,1740639045837,-500.0,0.00047397,120]
[354713776,1740639045847,-820.98,0.00047397,120]
[354713777,1740639045856,-445.43670164,0.00047397,120]
[354713778,1740639045866,-500.0,0.00047397,120]
[354713779,1740639045875,-500.0,0.00047397,120]
[354713780,1740639045884,-500.0,0.00047397,120]
[354713781,1740639045894,-500.0,0.00047397,120]
[354713782,1740639045903,-533.64,0.00047397,120]
[354713783,1740639045913,-500.0,0.00047397,120]
[354713784,1740639045922,-2155.72,0.00047397,120]
[354713785,1740639045932,-500.0,0.00047397,120]
[354713787,1740639045942,-500.0,0.00047397,120]
[354713789,1740639045951,-1268.17,0.00047397,120]
[354713791,1740639045961,-500.0,0.00047397,120]
[354713793,1740639045970,-500.0,0.00047397,120]
[354713795,1740639045980,-871.43,0.00047397,120]
[354713797,1740639045989,-500.0,0.00047397,120]
[354713798,1740639045999,-500.0,0.00047397,120]
[354713799,1740639046008,-704.15,0.00047397,3]
[354713800,1740639046017,-500.0,0.00047397,120]
[354713801,1740639046026,-631.49,0.00047397,120]
[354713803,1740639046036,-500.0,0.00047397,120]
[354713805,1740639046045,-500.0,0.00047397,120]
[354713807,1740639046055,-1083.09,0.00047397,120]
[354713809,1740639046064,-1968.43,0.00047397,120]
[354713812,1740639046073,-500.0,0.00047397,120]
[354713815,1740639046083,-500.0,0.00047397,120]
[354713817,1740639046092,-500.0,0.00047397,120]
[354713819,1740639046101,-500.0,0.00047397,120]
[354713821,1740639046111,-500.0,0.00047397,120]
[354713822,1740639046120,-500.0,0.00047397,120]
[354713823,1740639046129,-652.65,0.00047397,120]
[354713824,1740639046138,-500.0,0.00047397,120]
[354713825,1740639046152,-568.42,0.00047397,120]
[354713826,1740639046162,-194.10134746,0.00047397,120]
[354713827,1740639046171,-1279.68,0.00047397,120]
[354713828,1740639046180,-500.0,0.00047397,120]
[354713829,1740639046189,-1034.76,0.00047397,120]
[354713830,1740639046199,-621.27,0.00047397,120]
[354713831,1740639046208,-500.0,0.00047397,120]
[354713832,1740639046217,-500.0,0.00047397,120]
[354713833,1740639046226,-500.0,0.00047397,120]
[354713834,1740639046236,-971.87,0.00047397,120]
[354713835,1740639046246,-1155.05,0.00047397,120]
[354713836,1740639046255,-8308.25,0.00047397,6]
[354713837,1740639046265,-500.0,0.00047397,120]
[354713838,1740639046274,-828.14,0.00047397,120]
[354713839,1740639046283,-1109.98,0.00047397,120]
[354713840,1740639046292,-500.0,0.00047397,120]
[354713842,1740639046302,-1293.24,0.00047397,120]
[354713843,1740639046311,-3052.81,0.00047397,120]
[354713845,1740639046320,-12487.7,0.00047397,120]
[354713847,1740639046330,-639.4,0.00047397,120]
[354713849,1740639046339,-500.0,0.00047397,120]
[354713851,1740639046352,-1244.93,0.00047397,120]
[354713853,1740639046362,-607.14,0.00047397,120]
[354713855,1740639046372,-500.0,0.00047397,120]
[354713857,1740639046381,-3535.67,0.00047397,120]
[354713859,1740639046390,-500.0,0.00047397,120]
[354713861,1740639046400,-500.0,0.00047397,120]
[354713863,1740639046410,-500.0,0.00047397,120]
[354713864,1740639046419,-5070.35,0.00047397,120]
[354713865,1740639046429,-2147.59,0.00047397,120]
[354713866,1740639046439,-984.76,0.00047397,120]
[354713867,1740639046450,-500.0,0.00047397,120]
[354713868,1740639046459,-784.25,0.00047397,120]
[354713869,1740639046469,-108553.3,0.000474,30]
[354713870,1740639046478,-500.0,0.00047493,120]
[354713871,1740639046487,-500.0,0.00047493,120]
[354713872,1740639046497,-500.0,0.00047493,120]
[354713873,1740639046506,-500.0,0.00047493,120]
[354713874,1740639046515,-500.0,0.00047493,120]
[354713875,1740639046525,-500.0,0.00047493,120]
[354713876,1740639046535,-500.0,0.00047493,120]
[354713877,1740639046544,-500.0,0.00047493,120]
[354713878,1740639046554,-500.0,0.00047493,120]
[354713879,1740639046563,-500.0,0.00047493,120]
[354713880,1740639046572,-500.0,0.00047493,120]
[354713881,1740639046581,-500.0,0.00047493,120]
[354713882,1740639046591,-500.0,0.00047493,120]
[354713883,1740639046602,-500.0,0.00047493,120]
[354713884,1740639046611,-500.0,0.00047493,120]
[354713885,1740639046622,-500.0,0.00047493,120]
[354713886,1740639046632,-500.0,0.00047493,120]
[354713887,1740639046643,-500.0,0.00047671,120]
[354713888,1740639046652,-500.0,0.00047671,120]
[354713889,1740639046662,-500.0,0.00047671,120]
[354713890,1740639046672,-500.0,0.00047671,120]
[354713891,1740639046682,-500.0,0.00047671,120]
[354713892,1740639046691,-500.0,0.00047671,120]
[354713893,1740639046700,-500.0,0.00047671,120]
[354713894,1740639046710,-500.0,0.00047671,120]
[354713895,1740639046719,-500.0,0.00047671,120]
[354713896,1740639046728,-500.0,0.00047671,120]
[354713897,1740639046738,-500.0,0.00047671,120]
[354713898,1740639046747,-500.0,0.00047671,120]
[354713899,1740639046756,-500.0,0.00047671,120]
[354713900,1740639046766,-500.0,0.00047671,120]
[354713901,1740639046775,-500.0,0.00047671,120]
[354713902,1740639046784,-500.0,0.00047671,120]
[354713903,1740639046793,-500.0,0.00047671,120]
[354713904,1740639046803,-500.0,0.00047671,120]
[354713905,1740639046812,-500.0,0.00047671,120]
[354713906,1740639046821,-500.0,0.00047671,120]
[354713907,1740639046831,-500.0,0.00047671,120]
[354713908,1740639046840,-764.32,0.00047671,120]
[354713909,1740639046850,-500.0,0.00047671,120]
[354713910,1740639046859,-500.0,0.00047671,120]
[354713911,1740639046868,-500.0,0.00047671,120]
[354713912,1740639046878,-573.21,0.00047671,120]
[354713913,1740639046887,-500.0,0.00047671,120]
[354713914,1740639046896,-500.0,0.00047671,120]
[354713915,1740639046905,-429.62697479,0.00047671,120]
[354713916,1740639046914,-500.0,0.00047671,120]
[354713917,1740639046923,-507.71,0.00047671,120]
[354713918,1740639046932,-778.91,0.00047671,120]
[354713919,1740639046943,-531.02,0.00047671,120]
[354713920,1740639046953,-500.0,0.00047671,120]
[354713921,1740639046962,-548.62,0.00047671,120]
[354713922,1740639046972,-500.0,0.00047671,120]
[354713923,1740639046982,-560.36,0.00047671,120]
[354713924,1740639046992,-682.32,0.00047671,120]
[354713925,1740639047002,-500.0,0.00047671,120]
[354713926,1740639047012,-794.26,0.00047671,120]
[354713927,1740639047022,-663.38,0.00047671,120]
[354713928,1740639047031,-580.34,0.00047671,120]
[354713929,1740639047041,-500.0,0.00047671,120]
[354713930,1740639047050,-500.0,0.00047671,120]
[354713931,1740639047060,-924.34,0.00047671,120]
[354713932,1740639047069,-563.18677985,0.00047671,120]
[354713933,1740639047079,-500.0,0.00047671,120]
[354713934,1740639047088,-500.0,0.00047671,120]
[354713935,1740639047099,-500.0,0.00047671,120]
[354713936,1740639047108,-500.0,0.00047671,120]
[354713937,1740639047117,-752.26,0.00047671,120]
[354713938,1740639047126,-500.0,0.00047671,120]
[354713939,1740639047136,-217.94468811,0.00047671,120]
[354713940,1740639047145,-552.99,0.00047671,120]
[354713941,1740639047154,-500.0,0.00047671,120]
[354713942,1740639047163,-862.62,0.00047671,120]
[354713943,1740639047173,-500.0,0.00047671,120]
[354713944,1740639047183,-500.0,0.00047671,120]
[354713945,1740639047192,-500.0,0.00047671,120]
[354713946,1740639047202,-500.0,0.00047671,120]
[354713947,1740639047212,-500.0,0.00047671,120]
[354713948,1740639047221,-500.0,0.00047671,120]
[354713949,1740639047231,-500.0,0.00047671,120]
[354713950,1740639047240,-500.0,0.00047671,120]
[354713951,1740639047250,-500.0,0.00047671,120]
[354713952,1740639047259,-500.0,0.00047671,120]
[354713953,1740639047269,-266.57245554,0.00047671,120]
[354713954,1740639047278,-500.0,0.00047671,120]
[354713955,1740639047287,-946.85,0.00047671,120]
[354713956,1740639047298,-500.0,0.00047671,120]
[354713957,1740639047308,-500.0,0.00047671,120]
[354713958,1740639047319,-500.0,0.00047671,120]
[354713959,1740639047329,-2794.68,0.00047671,120]
[354713960,1740639047339,-10146.57,0.00047671,120]
[354713961,1740639047352,-500.0,0.00047671,120]
[354713962,1740639047362,-1299.66,0.00047671,120]
[354713963,1740639047372,-500.0,0.00047671,120]
[354713964,1740639047382,-500.0,0.00047671,120]
[354713965,1740639047393,-718.33,0.00047671,120]
[354713966,1740639047403,-500.0,0.00047671,120]
[354713967,1740639047413,-795.88,0.00047671,120]
[354713968,1740639047424,-500.0,0.00047671,120]
[354713969,1740639047435,-1556.83,0.00047671,120]
[354713970,1740639047446,-4439.09,0.00047671,120]
[354713971,1740639047455,-47042.11,0.00047671,7]
[354713972,1740639047466,-500.0,0.00047671,30]
[354713973,1740639047475,-959.85,0.00047671,120]
[354713974,1740639047484,-1494.81,0.00047671,120]
[354713975,1740639047494,-500.0,0.00047671,120]
[354713976,1740639047503,-500.0,0.00047671,120]
[354713977,1740639047513,-820.98,0.00047671,120]
[354713978,1740639047523,-500.0,0.00047671,120]
[354713979,1740639047532,-500.0,0.00047671,120]
[354713980,1740639047541,-500.0,0.00047671,120]
[354713981,1740639047550,-223.13555845,0.00047671,120]
[354713982,1740639047560,-533.64,0.00047671,120]
[354713983,1740639047569,-500.0,0.00047671,120]
[354713984,1740639047578,-2155.72,0.00047671,120]
[354713985,1740639047588,-500.0,0.00047671,120]
[354713986,1740639047597,-500.0,0.00047671,120]
[354713987,1740639047607,-1268.17,0.00047671,120]
[354713988,1740639047616,-500.0,0.00047671,120]
[354713989,1740639047626,-500.0,0.00047671,120]
[354713990,1740639047635,-871.43,0.00047671,120]
[354713991,1740639047644,-500.0,0.00047671,120]
[354713992,1740639047653,-500.0,0.00047671,120]
[354713993,1740639047663,-704.15,0.00047671,3]
[354713994,1740639047672,-500.0,0.00047671,120]
[354713995,1740639047681,-631.49,0.00047671,120]
[354713996,1740639047691,-500.0,0.00047671,120]
[354713997,1740639047700,-500.0,0.00047671,120]
[354713998,1740639047710,-1083.09,0.00047671,120]
[354713999,1740639047720,-1968.43,0.00047671,120]
[354714000,1740639047730,-500.0,0.00047671,120]
[354714001,1740639047741,-500.0,0.00047671,120]
[354714002,1740639047751,-500.0,0.00047671,120]
[354714003,1740639047762,-500.0,0.00047671,120]
[354714004,1740639047772,-500.0,0.00047671,120]
[354714005,1740639047783,-500.0,0.00047671,120]
[354714006,1740639047792,-652.65,0.00047671,120]
[354714007,1740639047802,-500.0,0.00047671,120]
[354714008,1740639047811,-568.42,0.00047671,120]
[354714009,1740639047820,-1279.68,0.00047671,120]
[354714010,1740639047830,-500.0,0.00047671,120]
[354714011,1740639047840,-1034.76,0.00047671,120]
[354714012,1740639047849,-621.27,0.00047671,120]
[354714013,1740639047859,-500.0,0.00047671,120]
[354714014,1740639047868,-500.0,0.00047671,120]
[354714015,1740639047878,-500.0,0.00047671,120]
[354714016,1740639047888,-971.87,0.00047671,120]
[354714017,1740639047898,-1155.05,0.00047671,120]
[354714018,1740639047907,-8308.25,0.00047671,6]
[354714019,1740639047916,-500.0,0.00047671,120]
[354714020,1740639047926,-828.14,0.00047671,120]
[354714021,1740639047935,-1109.98,0.00047671,120]
[354714022,1740639047945,-500.0,0.00047671,120]
[354714023,1740639047954,-1293.24,0.00047671,120]
[354714024,1740639047963,-3052.81,0.00047671,120]
[354714025,1740639047973,-12487.7,0.00047671,120]
[354714026,1740639047983,-639.4,0.00047671,120]
[354714027,1740639047992,-500.0,0.00047671,120]
[354714028,1740639048001,-1244.93,0.00047671,120]
[354714029,1740639048048,-607.14,0.00047671,120]
[354714030,1740639048057,-500.0,0.00047671,120]
[354714031,1740639048067,-3535.67,0.00047671,120]
[354714032,1740639048076,-500.0,0.00047671,120]
[354714033,1740639048085,-500.0,0.00047671,120]
[354714034,1740639048095,-500.0,0.00047671,120]
[354714035,1740639048104,-5070.35,0.00047671,120]
[354714036,1740639048113,-2147.59,0.00047671,120]
[354714037,1740639048122,-984.76,0.00047671,120]
[354714038,1740639048131,-495.46747193,0.00047671,120]
[354714039,1740639048141,-784.25,0.00047671,120]
[354714040,1740639048150,-4916.95,0.000477,30]
[354714041,1740639048159,-500.0,0.00047945,120]
[354714042,1740639048169,-500.0,0.00047945,120]
[354714043,1740639048178,-500.0,0.00047945,120]
[354714044,1740639048188,-571.42489141,0.00047945,120]
[354714045,1740639048197,-177.55579286,0.00047945,120]
[354714046,1740639048206,-500.0,0.00047945,120]
[354714047,1740639048215,-500.0,0.00047945,120]
[354714048,1740639048224,-500.0,0.00047945,120]
[354714049,1740639048233,-500.0,0.00047945,120]
[354714050,1740639048242,-500.0,0.00047945,120]
[354714051,1740639048251,-339.30674708,0.00047945,120]
[354714052,1740639048261,-500.0,0.00047945,120]
[354714053,1740639048270,-500.0,0.00047945,120]
[354714054,1740639048279,-500.0,0.00047945,120]
[354714055,1740639048288,-500.0,0.00047945,120]
[354714056,1740639048296,-500.0,0.00047945,120]
[354714057,1740639048305,-500.0,0.00047945,120]
[354714058,1740639048315,-500.0,0.00047945,120]
[354714059,1740639048324,-500.0,0.00047945,120]
[354714060,1740639048333,-764.32,0.00047945,120]
[354714061,1740639048342,-388.60722028,0.00047945,120]
[354714062,1740639048354,-500.0,0.00047945,120]
[354714063,1740639048364,-500.0,0.00047945,120]
[354714064,1740639048373,-573.21,0.00047945,120]
[354714065,1740639048383,-500.0,0.00047945,120]
[354714066,1740639048391,-500.0,0.00047945,120]
[354714067,1740639048411,-507.71,0.00047945,120]
[354714068,1740639048422,-500.0,0.00047945,120]
[354714069,1740639048433,-778.91,0.00047945,120]
[354714070,1740639048443,-531.02,0.00047945,120]
[354714071,1740639048453,-500.0,0.00047945,120]
[354714072,1740639048462,-548.62,0.00047945,120]
[354714073,1740639048472,-500.0,0.00047945,120]
[354714074,1740639048481,-560.36,0.00047945,120]
[354714075,1740639048490,-682.32,0.00047945,120]
[354714076,1740639048500,-500.0,0.00047945,120]
[354714077,1740639048509,-794.26,0.00047945,120]
[354714078,1740639048519,-266.00344561,0.00047945,120]
[354714079,1740639048684,-283.85756455,0.00047945,120]
[354714080,1740639048953,-3398.98,0.00046575,120]
[354714081,1740639048962,-500.0,0.00046575,120]
[354714082,1740639048972,-3398.98,0.00046849,120]
[354714083,1740639048981,-3398.98,0.00047123,120]
[354714084,1740639048990,-3398.98,0.00047397,120]
[354714085,1740639049000,-3398.98,0.00047671,120]
[354714086,1740639049009,-113.51898984,0.00047945,120]
[354714087,1740639049018,-580.34,0.00047945,120]
[354714088,1740639049027,-447.48416976,0.00047945,120]
[354714089,1740639049036,-500.0,0.00047945,120]
[354714090,1740639049046,-924.34,0.00047945,120]
[354714091,1740639049055,-500.0,0.00047945,120]
[354714092,1740639049064,-500.0,0.00047945,120]